bitfinex/quotes_ETHUSD_20250222
["timestamp","ask_amount","ask_price","bid_price","bid_amount"]
[1740206738382,491.91624283,2690.5,2690.4,18.57819794]
[1740206741283,491.91624283,2690.5,2690.4,18.69452066]
[1740206742944,491.91624283,2690.5,2690.4,18.79452066]
[1740206744626,491.91624283,2690.5,2690.4,18.99452066]
[1740206744627,490.75312079,2690.5,2690.4,18.99452066]
[1740206745018,489.97644511,2690.5,2690.4,18.99452066]
[1740206745726,489.97644511,2690.5,2690.4,19.06248718]
[1740206747039,489.97644511,2690.5,2690.4,18.94616446]
[1740206747532,489.97644511,2690.5,2690.4,22.86216446]
[1740206747706,489.97644511,2690.5,2690.4,18.94616446]
[1740206753135,489.22344511,2690.5,2690.4,18.94616446]
[1740206754435,488.47034511,2690.5,2690.4,18.94616446]
[1740206761824,488.47034511,2690.5,2690.4,18.68216446]
[1740206762153,488.47034511,2690.5,2690.4,18.94616446]
[1740206763432,488.47034511,2690.5,2690.4,18.68216446]
[1740206763640,488.47034511,2690.5,2690.4,18.94616446]
[1740206764516,488.47034511,2690.5,2690.4,18.74616446]
[1740206768159,488.47034511,2690.5,2690.4,11.21096652]
[1740206768343,489.22144511,2690.5,2690.4,12.38811049]
[1740206768519,489.22144511,2690.5,2690.4,12.58414397]
[1740206772637,489.22144511,2690.5,2690.4,7.593]
[1740206772842,489.22144511,2690.5,2690.4,9.58414397]
[1740206773648,489.22144511,2690.5,2690.4,9.32014397]
[1740206773844,489.22144511,2690.5,2690.4,9.58414397]
[1740206775519,489.22144511,2690.5,2690.4,11.31128794]
[1740206775721,489.22144511,2690.5,2690.4,9.58414397]
[1740206780390,489.22144511,2690.5,2690.4,1.99114397]
[1740206782196,489.22144511,2690.5,2690.4,10.98519794]
[1740206782197,488.47034511,2690.5,2690.4,10.98519794]
[1740206784583,489.26544511,2690.5,2690.4,8.70805397]
[1740206784768,489.26544511,2690.5,2690.4,10.43519794]
[1740206785608,489.26544511,2690.5,2690.4,10.98519794]
[1740206785793,488.47034511,2690.5,2690.4,10.98519794]
[1740206786274,477.42517248,2690.5,2690.4,11.05316446]
[1740206789016,477.42517248,2690.5,2690.4,11.25316446]
[1740206789202,477.42517248,2690.5,2690.4,12.36990246]
[1740206791582,477.42517248,2690.5,2690.4,12.16990246]
[1740206792627,477.42517248,2690.5,2690.4,11.90590246]
[1740206792790,477.42517248,2690.5,2690.4,11.05316446]
[1740206794889,477.42517248,2690.5,2690.4,10.78916446]
[1740206795106,477.42517248,2690.5,2690.4,11.05316446]
[1740206795638,477.42517248,2690.5,2690.4,7.33625446]
[1740206795846,477.42517248,2690.5,2690.4,2.05911049]
[1740206795847,478.17667248,2690.5,2690.4,2.05911049]
[1740206795994,478.17667248,2690.5,2690.4,5.05911049]
[1740206796201,478.17667248,2690.5,2690.4,7.50316446]
[1740206796403,478.17667248,2690.5,2690.4,6.78625446]
[1740206796601,478.17667248,2690.5,2690.4,5.05911049]
[1740206796837,478.17667248,2690.5,2690.4,4.79511049]
[1740206797047,478.17667248,2690.5,2690.4,6.78625446]
[1740206797210,477.42517248,2690.5,2690.4,11.05316446]
[1740206799652,477.42517248,2690.5,2690.4,18.64616446]
[1740206801937,477.42517248,2690.5,2690.4,18.76248192]
[1740206803328,477.42517248,2690.5,2690.4,17.03533795]
[1740206804916,477.42517248,2690.5,2690.4,13.31842795]
[1740206805120,477.42517248,2690.5,2690.4,12.76842795]
[1740206805321,477.42517248,2690.5,2690.4,16.48533795]
[1740206805936,478.22827248,2690.5,2690.4,12.76842795]
[1740206806119,478.22827248,2690.5,2690.4,16.48533795]
[1740206807325,478.22827248,2690.5,2690.4,16.22133795]
[1740206807659,478.22827248,2690.5,2690.4,16.48533795]
[1740206808264,478.22827248,2690.5,2690.4,18.21248192]
[1740206808469,478.22827248,2690.5,2690.4,16.48533795]
[1740206808768,478.22827248,2690.5,2690.4,12.76842795]
[1740206809137,478.22827248,2690.5,2690.4,5.17542795]
[1740206809661,478.22827248,2690.5,2690.4,8.89233795]
[1740206809826,478.22827248,2690.5,2690.4,8.62833795]
[1740206810158,478.22827248,2690.5,2690.4,5.17542795]
[1740206810368,478.22827248,2690.5,2690.4,8.89233795]
[1740206810941,478.22827248,2690.5,2690.4,5.17542795]
[1740206814369,478.22827248,2690.5,2690.4,8.89233795]
[1740206814765,478.22827248,2690.5,2690.4,8.77602049]
[1740206815060,477.42517248,2690.5,2690.4,11.05316446]
[1740206822250,477.42517248,2690.5,2690.4,11.25316446]
[1740206823387,475.8365724,2690.5,2690.4,11.25316446]
[1740206825378,475.8365724,2690.5,2690.4,11.05316446]
[1740206828284,475.8365724,2690.5,2690.4,11.25316446]
[1740206828502,475.8365724,2690.5,2690.4,18.84616446]
[1740206829563,475.1111724,2690.5,2690.4,18.84616446]
[1740206829763,474.3670724,2690.5,2690.4,18.84616446]
[1740206834809,452.2803924,2690.5,2690.4,18.84616446]
[1740206835711,446.9355924,2690.5,2690.4,18.84616446]
[1740206835912,242.33741785,2690.5,2690.4,18.84616446]
[1740206836067,241.40704336,2690.5,2690.4,18.84616446]
[1740206836267,240.47666887,2690.5,2690.4,18.84616446]
[1740206836511,238.92256887,2690.5,2690.4,19.96280146]
[1740206836884,237.82756887,2690.5,2690.4,19.96280146]
[1740206837090,237.82756887,2690.5,2690.4,16.24589146]
[1740206840696,237.82756887,2690.5,2690.4,16.35067069]
[1740206847951,237.82756887,2690.5,2690.4,19.90973786]
[1740206848108,237.82756887,2690.5,2690.4,16.35067069]
[1740206848452,236.96656887,2690.5,2690.4,16.35067069]
[1740206849237,236.78666887,2690.5,2690.4,20.06758069]
[1740206849549,227.64976887,2690.5,2690.4,20.06758069]
[1740206850054,215.41376302,2690.5,2690.4,23.62664786]
[1740206850211,205.84969388,2690.5,2690.4,23.62664786]
[1740206850411,192.07333598,2690.5,2690.4,23.62664786]
[1740206850636,177.14492395,2690.5,2690.4,23.62664786]
[1740206850949,150.16175402,2690.5,2690.4,23.62664786]
[1740206851110,148.11519989,2690.5,2690.4,23.62664786]
[1740206851500,132.43276195,2690.5,2690.4,23.62664786]
[1740206851746,132.00126195,2690.5,2690.4,23.62664786]
[1740206852223,132.00126195,2690.5,2690.4,23.89454786]
[1740206852704,128.52896196,2690.5,2690.4,23.89454786]
[1740206853151,118.66866197,2690.5,2690.4,23.89454786]
[1740206853336,92.61594617,2690.5,2690.4,23.89454786]
[1740206853542,91.52535823,2690.5,2690.4,23.89454786]
[1740206854312,90.77835823,2690.5,2690.4,27.40006545]
[1740206855164,90.77835823,2690.5,2690.4,23.89454786]
[1740206855372,90.77835823,2690.5,2690.4,27.40006545]
[1740206857535,90.77835823,2690.5,2690.4,23.84099828]
[1740206858878,90.77835823,2690.5,2690.4,19.04218828]
[1740206859063,90.77835823,2690.5,2690.4,19.30618828]
[1740206859264,90.77835823,2690.5,2690.4,19.85618828]
[1740206859872,90.77835823,2690.5,2690.4,16.35067069]
[1740206860084,90.77835823,2690.5,2690.4,15.88667069]
[1740206860379,90.77835823,2690.5,2690.4,16.15067069]
[1740206860733,90.77835823,2690.5,2690.4,16.0433339]
[1740206860933,90.77835823,2690.5,2690.4,15.9793339]
[1740206861136,90.77835823,2690.5,2690.4,16.2433339]
[1740206862581,90.77835823,2690.5,2690.4,14.51746871]
[1740206865579,90.77835823,2690.5,2690.4,16.2433339]
[1740206867686,90.77835823,2690.5,2690.4,19.9602439]
[1740206869355,81.35605299,2690.5,2690.4,20.2281439]
[1740206869745,80.44235299,2690.5,2690.4,20.2281439]
[1740206869987,78.90875299,2690.5,2690.4,20.2281439]
[1740206870683,73.48225299,2690.5,2690.4,20.33449799]
[1740206871159,73.48225299,2690.5,2690.4,23.80215996]
[1740206871561,71.22614649,2690.5,2690.4,23.80215996]
[1740206871758,66.85234649,2690.5,2690.4,23.80215996]
[1740206872187,64.43978197,2690.5,2690.4,20.33449799]
[1740206872350,61.36111745,2690.5,2690.4,20.33449799]
[1740206872552,60.80901745,2690.5,2690.4,20.33449799]
[1740206873075,58.62101745,2690.5,2690.4,23.89258246]
[1740206873478,58.23501745,2690.5,2690.4,23.89258246]
[1740206873787,54.57057414,2690.5,2690.4,23.89258246]
[1740206874154,53.35157414,2690.5,2690.4,23.89258246]
[1740206874574,50.67747414,2690.5,2690.4,23.89258246]
[1740206875169,40.27084312,2690.5,2690.4,23.89258246]
[1740206875379,27.24603645,2690.5,2690.4,23.89258246]
[1740206875579,13.29088645,2690.5,2690.4,23.89258246]
[1740206875853,13.29088645,2690.5,2690.4,20.33449799]
[1740206876082,13.29088645,2690.5,2690.4,23.80215996]
[1740206877592,12.89278645,2690.5,2690.4,23.80215996]
[1740206878089,11.95768645,2690.5,2690.4,23.80215996]
[1740206879581,9.92878645,2690.5,2690.4,23.80215996]
[1740206879987,7.92878645,2690.5,2690.4,23.80215996]
[1740206880302,7.92878645,2690.5,2690.4,19.55334996]
[1740206880601,7.92878645,2690.5,2690.4,23.80215996]
[1740206880755,7.92878645,2690.5,2690.4,20.33449799]
[1740206880959,7.92878645,2690.5,2690.4,20.06659799]
[1740206882870,7.92878645,2690.5,2690.4,21.22569799]
[1740206883394,1.3096,2691.0,2690.9,3.55]
[1740206883594,3.71474,2692.0,2691.1,0.55]
[1740206883795,3.71474,2692.0,2691.3,3.55]
[1740206883796,1.3096,2691.9,2691.3,3.55]
[1740206884095,1.3096,2691.9,2691.5,3.55]
[1740206884964,1.3096,2691.9,2691.6,1.116447]
[1740206885865,1.3096,2691.9,2691.7,0.11628077]
[1740206886804,3.71485,2691.9,2691.7,0.11628077]
[1740206887007,1.3096,2691.8,2691.7,0.11628077]
[1740206887300,1.3096,2691.8,2691.6,1.116447]
[1740206888019,1.3096,2691.8,2691.7,5.37]
[1740206893203,1.3096,2691.8,2691.7,5.92]
[1740206898712,1.3096,2691.8,2691.7,5.37]
[1740206898910,5.02458,2691.8,2691.7,5.37]
[1740206899115,5.31528,2691.8,2691.7,5.37]
[1740206900230,1.6003,2691.8,2691.7,5.37]
[1740206900592,1.6003,2691.8,2691.7,5.36999942]
[1740206902034,5.31528,2691.8,2691.7,5.36999942]
[1740206902194,5.846795,2691.8,2691.7,5.63299942]
[1740206902375,5.846795,2691.8,2691.7,5.36999942]
[1740206904580,5.31528,2691.8,2691.7,5.36999942]
[1740206913398,1.6003,2691.8,2691.7,5.36999942]
[1740206913599,5.31528,2691.8,2691.7,5.36999942]
[1740206920210,5.25751,2691.2,2691.1,7.591]
[1740206921305,3.71621,2691.0,2690.8,0.263]
[1740206921549,1.6247,2690.9,2690.8,0.263]
[1740206922417,5.34092,2690.9,2690.8,0.263]
[1740206922748,1.6247,2690.9,2690.8,0.263]
[1740206926252,5.34092,2690.9,2690.8,0.263]
[1740206926438,6.246622,2690.9,2690.8,0.263]
[1740206927331,3.71656,2690.7,2690.3,3.0]
[1740206927536,5.34162,2690.4,2690.2,7.592]
[1740206928065,5.34162,2690.4,2690.3,0.264]
[1740206928875,1.6247,2690.4,2690.3,0.264]
[1740206929674,3.71664,2690.6,2690.3,0.264]
[1740206930178,3.71678,2690.5,2690.3,0.264]
[1740206932675,3.71664,2690.6,2690.3,0.264]
[1740206932676,5.34161,2690.4,2690.3,0.264]
[1740206942187,5.34163,2690.4,2690.0,9.42e-06]
[1740206942392,1.6364,2690.1,2689.6,7.59400942]
[1740206942551,3.71747,2690.0,2689.7,0.264]
[1740206942890,3.71772,2689.9,2689.6,7.59400942]
[1740206943188,3.71747,2690.0,2689.7,0.264]
[1740206943393,7.43503,2690.0,2689.8,0.264]
[1740206943548,7.43502,2690.0,2689.8,0.264]
[1740206943749,3.71747,2690.0,2689.8,0.264]
[1740206943995,3.71761,2689.9,2689.8,0.264]
[1740206944866,3.71761,2689.9,2689.7,0.34743614]
[1740206945197,5.35414,2689.8,2689.7,0.34743614]
[1740206945421,5.35414,2689.8,2689.7,0.61143614]
[1740206946186,5.35414,2689.8,2689.7,0.264]
[1740206947199,3.71761,2689.9,2689.7,0.264]
[1740206947502,3.71755,2690.0,2689.7,0.264]
[1740206947656,3.71755,2690.0,2689.7,0.61138501]
[1740206948302,3.71768,2689.9,2689.7,0.61138501]
[1740206948668,3.71768,2689.9,2689.7,0.264]
[1740206949169,3.71768,2689.9,2689.8,0.34758062]
[1740206949577,3.71747,2690.0,2689.8,0.34758062]
[1740206949907,3.71747,2690.0,2689.8,0.38276063]
[1740206950412,3.71724,2690.2,2689.8,0.38276063]
[1740206950581,3.71724,2690.2,2689.9,0.34758062]
[1740206950915,3.71747,2690.0,2689.9,0.3836044]
[1740206951117,1.6364,2690.3,2689.9,0.3836044]
[1740206951313,3.71735,2690.1,2689.9,0.3836044]
[1740206951625,3.71747,2690.0,2689.9,0.3836044]
[1740206952312,3.71747,2690.0,2689.9,0.03602378]
[1740206952673,3.71747,2690.0,2689.7,0.264]
[1740206952912,3.71747,2690.0,2689.9,0.03602378]
[1740206953115,3.71747,2690.0,2689.7,0.264]
[1740206953319,3.71747,2690.0,2689.9,0.03602378]
[1740206953595,3.71747,2690.0,2689.9,0.38375897]
[1740206955091,3.71731,2690.2,2689.9,0.38375897]
[1740206956009,3.71731,2690.2,2690.0,0.34773519]
[1740206956533,3.71731,2690.2,2690.1,0.03602378]
[1740206956757,3.71698,2690.4,2690.1,0.03602378]
[1740206957052,3.71712,2690.3,2690.1,0.03602378]
[1740206957415,3.71719,2690.2,2690.1,0.03602378]
[1740206958339,3.71695,2690.4,2690.1,0.03602378]
[1740206959442,3.71695,2690.4,2690.1,0.38405707]
[1740206959644,5.33434,2690.5,2690.1,0.38405707]
[1740206959802,3.71693,2690.4,2690.1,0.38405707]
[1740206960138,7.43396,2690.4,2690.1,0.38405707]
[1740206960726,3.71693,2690.4,2690.2,0.34803329]
[1740206961046,3.71705,2690.3,2690.2,0.34803329]
[1740206962571,1.6167,2690.8,2690.2,0.34803329]
[1740206962866,7.43366,2690.5,2690.2,0.34803329]
[1740206963162,3.71698,2690.4,2690.2,0.34803329]
[1740206963666,3.71698,2690.4,2690.3,0.34803329]
[1740206963862,3.71678,2690.5,2690.3,0.34803329]
[1740206964366,7.43364,2690.5,2690.3,0.34803329]
[1740206964560,7.43368,2690.5,2690.3,0.34803329]
[1740206964863,3.71691,2690.4,2690.3,0.34803329]
[1740206965063,5.33361,2690.4,2690.3,0.34803329]
[1740206965362,5.33361,2690.4,2690.3,0.03566408]
[1740206965572,3.71761,2689.9,2689.8,9.42e-06]
[1740206965762,3.71761,2689.9,2689.8,0.26400942]
[1740206966122,3.71745,2690.1,2689.8,0.26400942]
[1740206966366,3.71717,2690.3,2689.8,0.26400942]
[1740206966367,3.71721,2690.2,2689.8,0.26400942]
[1740206966959,3.71707,2690.3,2689.8,0.26400942]
[1740206967136,3.71707,2690.3,2689.9,1.1591]
[1740206967339,3.71689,2690.5,2689.9,1.50734528]
[1740206967636,3.71698,2690.4,2689.9,1.50734528]
[1740206968075,3.71672,2690.6,2690.0,0.55]
[1740206968262,3.71672,2690.6,2690.1,1.1591]
[1740206968578,3.71684,2690.5,2690.1,1.1591]
[1740206968932,3.71672,2690.6,2690.1,1.1591]
[1740206969373,3.71682,2690.5,2690.1,1.1591]
[1740206969871,3.71669,2690.6,2690.1,1.1591]
[1740206970079,5.22318,2690.8,2690.1,1.1591]
[1740206970249,3.71684,2690.5,2690.2,0.34824528]
[1740206971347,3.71666,2690.6,2690.2,0.34824528]
[1740206971735,3.71666,2690.6,2690.3,0.34824528]
[1740206972875,7.4334,2690.6,2690.3,0.34824528]
[1740206973078,3.71666,2690.6,2690.3,0.34824528]
[1740206973258,3.71666,2690.6,2690.4,0.34824528]
[1740206973462,5.22369,2690.5,2690.4,0.34824528]
[1740206974053,5.22369,2690.5,2690.4,0.38353589]
[1740206976177,5.22369,2690.5,2690.4,0.61224528]
[1740206986727,3.71689,2690.5,2690.4,0.61224528]
[1740206989997,3.71689,2690.5,2690.4,0.64749435]
[1740206992307,5.33567,2690.9,2690.4,0.64749435]
[1740206992308,3.71656,2690.7,2690.4,0.64749435]
[1740206992494,3.71642,2690.8,2690.5,1.1591]
[1740206993126,3.71642,2690.8,2690.6,0.03524907]
[1740206993701,3.71642,2690.8,2690.6,0.38349435]
[1740206994788,3.71642,2690.8,2690.7,0.34824528]
[1740206997617,3.71642,2690.8,2690.7,0.38349435]
[1740206998842,6.030685,2690.8,2690.7,0.38349435]
[1740206999161,6.030685,2690.8,2690.7,0.34824528]
[1740207002321,6.030685,2690.8,2690.7,0.61224528]
[1740207002523,6.030685,2690.8,2690.7,0.38323157]
[1740207002723,6.010885,2690.8,2690.7,0.38323157]
[1740207002946,6.010885,2690.8,2690.7,0.34824528]
[1740207004472,5.26762,2690.8,2690.7,0.34824528]
[1740207007367,3.71664,2690.6,2690.5,0.264]
[1740207007661,3.71664,2690.6,2690.5,0.29888946]
[1740207008166,3.71664,2690.6,2690.5,1.45798946]
[1740207008863,3.71664,2690.6,2690.5,1.80640469]
[1740207009364,7.43313,2690.7,2690.5,1.80640469]
[1740207009868,3.71664,2690.6,2690.5,1.80640469]
[1740207010171,3.71664,2690.6,2690.5,0.64730469]
[1740207010336,5.26784,2690.6,2690.5,0.64730469]
[1740207010551,5.26784,2690.6,2690.5,0.29888946]
[1740207011682,5.26784,2690.6,2690.5,0.64736703]
[1740207011979,5.26784,2690.6,2690.5,0.76371619]
[1740207014339,5.26784,2690.6,2690.5,0.49971619]
[1740207015647,6.166276,2690.6,2690.5,0.49971619]
[1740207015957,6.166276,2690.6,2690.5,0.46482673]
[1740207016283,6.166276,2690.6,2690.5,0.50006198]
[1740207018093,6.166276,2690.6,2690.5,0.38371282]
[1740207019392,6.199976,2690.6,2690.5,0.38371282]
[1740207019969,6.199976,2690.6,2690.5,0.03523525]
[1740207020390,6.199976,2690.6,2690.5,5.25e-06]
[1740207020595,3.71705,2690.3,2690.2,0.264]
[1740207020805,4.088755,2690.3,2690.2,0.264]
[1740207021601,4.088755,2690.3,2690.2,0.61249482]
[1740207022175,4.088755,2690.3,2690.2,0.34849482]
[1740207022974,5.714655,2690.3,2690.2,0.34849482]
[1740207023573,5.34295,2690.3,2690.2,0.34849482]
[1740207023807,3.71705,2690.3,2690.2,0.34849482]
[1740207024720,3.71719,2690.2,2690.1,0.34849482]
[1740207028804,3.71705,2690.3,2690.1,0.34849482]
[1740207029007,3.717,2690.4,2690.1,0.34849482]
[1740207029208,3.71715,2690.3,2690.1,0.34849482]
[1740207029413,3.71719,2690.2,2690.1,0.34849482]
[1740207031129,3.71708,2690.3,2690.1,0.34849482]
[1740207031918,3.71719,2690.2,2690.1,0.34849482]
[1740207032288,3.71719,2690.2,2690.1,0.07449085]
[1740207032712,3.71719,2690.2,2690.1,1.23359085]
[1740207034025,3.71719,2690.2,2690.1,1.58199044]
[1740207034223,3.71719,2690.2,2690.1,0.42289044]
[1740207044352,5.35209,2690.2,2690.1,0.42289044]
[1740207044568,5.35209,2690.2,2690.1,0.68689044]
[1740207046326,5.35209,2690.2,2690.1,0.42289044]
[1740207046528,5.35209,2690.2,2690.1,0.68689044]
[1740207046723,6.43174157,2690.2,2690.1,0.42289044]
[1740207054880,3.71719,2690.2,2690.1,0.42289044]
[1740207055671,1.6349,2690.4,2690.1,0.42289044]
[1740207055831,3.71703,2690.4,2690.2,1.1591]
[1740207056171,3.71703,2690.4,2690.3,0.07476755]
[1740207056529,3.71703,2690.4,2690.2,1.50749959]
[1740207056738,3.71703,2690.4,2690.3,0.07476755]
[1740207057071,3.71703,2690.4,2690.2,1.50749959]
[1740207057274,3.71703,2690.4,2690.3,0.07468455]
[1740207057431,3.71703,2690.4,2690.2,1.50749959]
[1740207057738,3.71703,2690.4,2690.3,0.07468455]
[1740207057945,3.71703,2690.4,2690.3,0.42308414]
[1740207058148,3.71703,2690.4,2690.3,0.34839959]
[1740207058877,6.048112,2690.4,2690.3,0.34839959]
[1740207067010,3.71719,2690.2,2690.1,0.264]
[1740207068729,1.655,2690.1,2689.5,1.1591]
[1740207069030,1.655,2690.1,2689.9,0.264]
[1740207069031,3.71747,2690.0,2689.9,0.264]
[1740207069740,3.71747,2690.0,2689.5,1.1591]
[1740207069741,3.71802,2689.6,2689.5,1.1591]
[1740207070059,3.71802,2689.6,2689.5,1.49796441]
[1740207072664,3.71802,2689.6,2689.5,1.23396441]
[1740207072974,3.71802,2689.6,2689.5,1.49796441]
[1740207074145,3.71791,2689.7,2689.5,1.49796441]
[1740207074338,7.43591,2689.7,2689.5,1.49796441]
[1740207074542,3.71802,2689.6,2689.5,1.49796441]
[1740207076663,3.71791,2689.7,2689.5,1.49796441]
[1740207076869,7.43588,2689.7,2689.5,1.49796441]
[1740207077596,3.71802,2689.6,2689.5,1.49796441]
[1740207079104,7.43588,2689.7,2689.5,1.49796441]
[1740207079407,3.71802,2689.6,2689.5,1.23396441]
[1740207079604,3.71802,2689.6,2689.5,1.49796441]
[1740207080483,3.71802,2689.6,2689.5,0.33886441]
[1740207080682,3.71802,2689.6,2689.5,0.45524343]
[1740207083805,3.71802,2689.6,2689.5,0.33886441]
[1740207085619,3.71802,2689.6,2689.5,0.07486441]
[1740207085837,3.71802,2689.6,2689.5,0.33886441]
[1740207086006,3.71802,2689.6,2689.5,0.264]
[1740207086214,3.71802,2689.6,2689.5,0.33911348]
[1740207092485,3.71791,2689.7,2689.5,0.33911348]
[1740207092984,3.71774,2689.8,2689.5,0.33911348]
[1740207093682,3.71774,2689.8,2689.6,1.1591]
[1740207093837,3.71774,2689.8,2689.6,1.23440723]
[1740207094485,3.71762,2689.9,2689.6,1.23440723]
[1740207095440,3.71728,2690.2,2689.6,1.23440723]
[1740207096069,7.43455,2690.2,2689.6,1.23440723]
[1740207096592,7.43456,2690.2,2689.6,1.23440723]
[1740207097194,3.71727,2690.2,2689.6,1.23440723]
[1740207097994,7.43457,2690.2,2689.6,1.23440723]
[1740207098195,3.71727,2690.2,2689.6,1.23440723]
[1740207098899,3.71739,2690.1,2689.6,1.23440723]
[1740207099203,3.71764,2689.9,2689.6,1.23440723]
[1740207100072,3.71764,2689.9,2689.6,8.83140723]
[1740207100255,3.71788,2689.7,2689.6,7.67230723]
[1740207101362,3.71777,2689.8,2689.6,7.67230723]
[1740207102009,3.71755,2690.0,2689.7,1.1591]
[1740207102296,3.71755,2690.0,2689.8,0.07477017]
[1740207102600,3.71755,2690.0,2689.7,1.1591]
[1740207103057,3.71755,2690.0,2689.8,0.07477017]
[1740207103254,3.71755,2690.0,2689.7,1.1591]
[1740207103492,1.6353,2690.1,2689.8,0.07477017]
[1740207103697,1.6353,2690.1,2689.7,1.1591]
[1740207103698,3.71759,2690.0,2689.7,1.1591]
[1740207103877,3.71762,2689.9,2689.7,1.1591]
[1740207107310,3.71762,2689.9,2689.6,7.597]
[1740207107471,7.4353,2689.9,2689.6,7.597]
[1740207107666,3.71762,2689.9,2689.6,7.597]
[1740207107994,3.71788,2689.7,2689.6,7.597]
[1740207109714,3.71788,2689.7,2689.5,0.264]
[1740207109912,3.71809,2689.6,2689.4,8.7551]
[1740207110107,3.71809,2689.6,2689.5,0.264]
[1740207113971,3.71788,2689.7,2689.5,0.264]
[1740207115011,3.71788,2689.7,2689.6,0.07474249]
[1740207124316,3.71777,2689.8,2689.6,0.07474249]
[1740207124519,5.35273,2690.1,2689.6,0.07474249]
[1740207124719,9.07014,2690.1,2689.7,1.1591]
[1740207125097,9.07014,2690.1,2689.8,0.07482551]
[1740207125420,9.07014,2690.1,2689.7,1.1591]
[1740207125626,9.07014,2690.1,2689.9,0.07482551]
[1740207125784,3.7175,2690.0,2689.7,1.1591]
[1740207126826,1.6353,2690.1,2689.7,1.1591]
[1740207127399,5.35271,2690.1,2689.7,1.1591]
[1740207127605,3.71741,2690.1,2689.7,1.1591]
[1740207129037,7.43484,2690.1,2689.7,1.1591]
[1740207129539,3.71741,2690.1,2689.7,1.1591]
[1740207129764,7.43485,2690.1,2689.7,1.1591]
[1740207129963,7.43485,2690.1,2689.8,0.0745903]
[1740207130319,3.71741,2690.1,2689.7,1.1591]
[1740207130526,7.43484,2690.1,2689.9,0.0745903]
[1740207130756,7.43484,2690.1,2689.7,1.1591]
[1740207130928,7.43484,2690.1,2690.0,0.0745903]
[1740207131130,7.43484,2690.1,2689.7,1.1591]
[1740207131463,3.71741,2690.1,2690.0,0.0745903]
[1740207131768,7.43484,2690.1,2690.0,0.0745903]
[1740207131923,7.43482,2690.1,2689.7,1.1591]
[1740207132125,3.71741,2690.1,2690.0,0.0745903]
[1740207132460,3.71741,2690.1,2689.7,1.1591]
[1740207132638,3.71741,2690.1,2690.0,0.0745903]
[1740207132840,3.71741,2690.1,2689.7,1.1591]
[1740207133040,3.71741,2690.1,2690.0,0.0745903]
[1740207133240,3.71741,2690.1,2689.7,1.1591]
[1740207133458,3.71741,2690.1,2690.0,0.0745903]
[1740207133932,3.71741,2690.1,2689.7,1.1591]
[1740207134255,3.71741,2690.1,2690.0,0.0745903]
[1740207134442,3.71752,2690.0,2689.7,1.1591]
[1740207135477,3.71752,2690.0,2689.8,0.264]
[1740207140313,7.43485,2690.1,2689.8,0.264]
[1740207141788,3.71747,2690.0,2689.8,0.264]
[1740207142489,3.71747,2690.0,2689.9,0.11636385]
[1740207144945,3.71747,2690.0,2689.9,0.19094029]
[1740207145924,5.32807,2690.0,2689.9,0.19094029]
[1740207150048,7.96044716,2690.0,2689.9,0.19094029]
[1740207150405,7.96044716,2690.0,2689.9,0.11636385]
[1740207151122,10.96044716,2690.0,2689.9,3.85e-06]
[1740207151456,5.32862,2689.6,2689.5,7.597]
[1740207151620,5.32917,2689.2,2689.1,1.9296]
[1740207151821,7.05699916,2689.2,2689.1,1.6666]
[1740207153886,5.32917,2689.2,2689.1,1.6666]
[1740207154059,3.71857,2689.2,2689.1,1.6666]
[1740207154887,3.71824,2689.5,2689.1,1.6666]
[1740207155045,3.71808,2689.6,2689.2,1.1591]
[1740207155244,3.71817,2689.5,2689.2,1.1591]
[1740207155644,3.7183,2689.4,2689.2,1.1591]
[1740207156149,3.71817,2689.5,2689.2,1.1591]
[1740207157993,3.71831,2689.4,2689.2,1.1591]
[1740207159292,3.71831,2689.4,2689.1,1.6666]
[1740207159466,3.71851,2689.3,2689.1,1.6666]
[1740207160219,3.71851,2689.3,2689.2,0.07266947]
[1740207163476,3.71831,2689.4,2689.2,0.07266947]
[1740207164791,7.43672,2689.4,2689.2,0.07266947]
[1740207164987,3.71831,2689.4,2689.2,0.07266947]
[1740207165191,3.71831,2689.4,2689.3,0.264]
[1740207165395,3.71831,2689.4,2689.3,0.33755458]
[1740207167078,3.71831,2689.4,2689.3,0.34288098]
[1740207168275,6.067857,2689.4,2689.3,0.34288098]
[1740207168445,5.32421,2689.4,2689.3,0.34288098]
[1740207174289,5.32421,2689.4,2689.3,0.07888098]
[1740207174500,5.32421,2689.4,2689.3,0.34288098]
[1740207175697,5.32421,2689.4,2689.3,0.07888098]
[1740207176295,3.71831,2689.4,2689.3,0.07888098]
[1740207181016,3.71831,2689.4,2689.3,0.34288098]
[1740207182513,4.622548,2689.4,2689.3,0.34288098]
[1740207182702,6.260848,2689.4,2689.3,0.34288098]
[1740207183683,6.260848,2689.4,2689.3,0.45928142]
[1740207184277,5.35661,2689.4,2689.3,0.45928142]
[1740207185425,5.35661,2689.4,2689.3,0.34288098]
[1740207186407,3.71831,2689.4,2689.3,0.34288098]
[1740207190131,6.96673916,2689.4,2689.3,0.07888098]
[1740207190328,8.03523108,2689.4,2689.3,0.07888098]
[1740207192041,8.03523108,2689.4,2689.3,9.8e-07]
[1740207192217,8.03523108,2689.4,2689.3,1.3e-07]
[1740207192447,3.71857,2689.2,2689.1,1.6666]
[1740207192735,6.96699916,2689.2,2689.1,1.6666]
[1740207193046,8.14239327,2689.2,2689.1,1.6666]
[1740207194048,5.23931,2689.1,2689.0,3.3332]
[1740207199660,5.23931,2689.1,2689.0,3.3944946]
[1740207212587,3.71871,2689.1,2689.0,3.3944946]
[1740207229593,3.71871,2689.1,2689.0,3.51091388]
[1740207231402,3.71871,2689.1,2689.0,3.3944946]
[1740207238402,3.71871,2689.1,2689.0,3.51090826]
[1740207241524,3.71871,2689.1,2689.0,3.3944946]
[1740207244426,5.70432592,2689.1,2689.0,3.3944946]
[1740207246231,7.43215508,2689.1,2689.0,3.3944946]
[1740207249086,9.08475508,2689.1,2689.0,3.3944946]
[1740207249903,7.35692592,2689.1,2689.0,3.3944946]
[1740207256224,3.71871,2689.1,2689.0,3.3944946]
[1740207259741,3.71871,2689.1,2689.0,3.51090966]
[1740207260633,3.71871,2689.1,2689.0,4.67000966]
[1740207263322,9.03846,2689.3,2689.0,4.67000966]
[1740207263652,9.03846,2689.3,2689.1,1.1591]
[1740207263653,5.32,2689.3,2689.1,1.1591]
[1740207263853,8.25987,2689.9,2689.2,0.05968466]